fUSD/lending_fUSD_20250702
["ID","MTS","AMOUNT","RATE_DAILY","PERIOD"]
[369041261,1751443833548,-174.84,0.000163,2]
[369041262,1751443833557,-163.94,0.000163,2]
[369041263,1751443833567,-150.0,0.000163,2]
[369041264,1751443833577,-167.32,0.000163,2]
[369041265,1751443833587,-170.81,0.000163,2]
[369041266,1751443833596,-3458.0,0.00016307,2]
[369041267,1751443833605,-2391.86021304,0.00016308,2]
[369041268,1751443833615,-748.89,0.00016328,2]
[369041269,1751443833624,-371.31471975,0.00016328,2]
[369041270,1751443833634,-151.0,0.00016328,2]
[369041271,1751443833643,-500.0,0.00016328,2]
[369041272,1751443833652,-300.0,0.00016328,2]
[369041273,1751443833662,-500.0,0.00016328,2]
[369041274,1751443833672,-500.0,0.00016328,2]
[369041275,1751443833681,-65.64078555,0.00016328,2]
[369041279,1751443838294,-167.66,0.00015147,2]
[369041280,1751443838303,-367.13,0.0001628,2]
[369041281,1751443838312,-367.13,0.00016328,2]
[369041282,1751443838321,-367.13,0.00016328,2]
[369041283,1751443838331,-434.35921445,0.00016328,2]
[369041284,1751443838340,-500.0,0.00016328,2]
[369041285,1751443838350,-500.0,0.00016328,2]
[369041286,1751443838359,-500.0,0.00016328,2]
[369041288,1751443838368,-500.0,0.00016328,2]
[369041289,1751443838377,-500.0,0.00016328,2]
[369041290,1751443838387,-500.0,0.00016328,2]
[369041291,1751443838397,-500.0,0.00016328,2]
[369041292,1751443838407,-500.0,0.00016328,2]
[369041293,1751443838416,-500.0,0.00016328,2]
[369041294,1751443838425,-500.0,0.00016328,2]
[369041295,1751443838435,-500.0,0.00016328,2]
[369041296,1751443838444,-500.0,0.00016328,2]
[369041297,1751443838454,-500.0,0.00016328,2]
[369041298,1751443838463,-500.0,0.00016328,2]
[369041299,1751443838473,-500.0,0.00016328,2]
[369041300,1751443838482,-500.0,0.00016328,2]
[369041301,1751443838491,-241.8479867,0.00016328,2]
[369041302,1751443838501,-300.0,0.00016328,2]
[369041303,1751443838510,-300.0,0.00016328,2]
[369041304,1751443838520,-300.0,0.00016328,2]
[369041305,1751443838532,-300.0,0.00016328,2]
[369041306,1751443838541,-300.0,0.00016328,2]
[369041307,1751443838550,-300.0,0.00016328,2]
[369041308,1751443838560,-300.0,0.00016328,2]
[369041309,1751443838570,-300.0,0.00016328,2]
[369041310,1751443838580,-300.0,0.00016328,2]
[369041311,1751443838590,-500.0,0.00016328,2]
[369041312,1751443838599,-500.0,0.00016328,2]
[369041313,1751443838609,-300.0,0.00016328,2]
[369041314,1751443838618,-500.0,0.00016328,2]
[369041315,1751443838627,-300.0,0.00016328,2]
[369041316,1751443838637,-500.0,0.00016328,2]
[369041317,1751443838646,-300.0,0.00016328,2]
[369041319,1751443838655,-300.0,0.00016328,2]
[369041320,1751443838664,-500.0,0.00016328,2]
[369041321,1751443838674,-300.0,0.00016328,2]
[369041322,1751443838684,-500.0,0.00016328,2]
[369041323,1751443838693,-297.94846719,0.00016328,2]
[369041324,1751443838714,-202.05153281,0.00016328,2]
[369041325,1751443838724,-500.0,0.00016328,2]
[369041326,1751443838734,-390.75172873,0.00016328,2]
[369041327,1751443838743,-314.54662372,0.00016338,2]
[369041328,1751443838753,-177.80353349,0.00016338,2]
[369041329,1751443838762,-167.3540805,0.00016338,2]
[369041330,1751443838772,-3098.01869033,0.00016338,2]
[369041331,1751443838781,-688.2615916,0.00016338,2]
[369041332,1751443838804,-687.88775996,0.00016338,2]
[369041333,1751443838814,-500.0,0.00016338,2]
[369041334,1751443838823,-162.22194804,0.00016338,2]
[369041335,1751443838835,-1146.70000002,0.00016338,2]
[369041492,1751443840657,-374.45,0.00016328,2]
[369041494,1751443840667,-1328.28615194,0.00016338,2]
[369041496,1751443840677,-1000.0,0.00016338,2]
[369041498,1751443840687,-67461.8748,0.00016338,2]
[369041500,1751443840696,-385.56429376,0.00016383,2]
[369041502,1751443840705,-167.66,0.00016397,2]
[369041504,1751443840714,-151.14,0.000164,2]
[369041506,1751443840723,-171.31,0.000164,2]
[369041508,1751443840732,-3041.14151097,0.000164,2]
[369041510,1751443840742,-200.9591,0.00016411,2]
[369041512,1751443840751,-500.0,0.00016419,2]
[369041514,1751443840760,-364.72705189,0.00016419,2]
[369041534,1751443840930,-500.0,0.00016419,2]
[369041538,1751443840987,-500.0,0.00016419,2]
[369041540,1751443840997,-500.0,0.00016419,2]
[369041541,1751443841006,-500.0,0.00016419,2]
[369041543,1751443841015,-151.28981868,0.00016419,2]
[369041545,1751443841025,-254.06113283,0.00016419,2]
[369041547,1751443841034,-500.0,0.00016419,2]
[369041549,1751443841043,-618.14104605,0.00016419,2]
[369041551,1751443841053,-27594.03,0.0001642,2]
[369041553,1751443841063,-843.89432812,0.0001642,2]
[369041555,1751443841072,-367.13,0.00016427,2]
[369041557,1751443841081,-304.2,0.00016427,2]
[369041559,1751443841090,-300.29,0.00016427,2]
[369041561,1751443841099,-300.59,0.00016427,2]
[369041563,1751443841108,-303.5,0.00016427,2]
[369041565,1751443841117,-300.04,0.00016427,2]
[369041567,1751443841126,-367.13,0.00016428,2]
[369041569,1751443841135,-374.45,0.00016428,2]
[369041571,1751443841144,-201.07322928,0.00016428,2]
[369041573,1751443841153,-302.44,0.00016428,2]
[369041575,1751443841162,-303.01,0.00016428,2]
[369041577,1751443841173,-303.98,0.00016428,2]
[369041579,1751443841182,-303.64,0.00016428,2]
[369041581,1751443841191,-300.64,0.00016428,2]
[369041583,1751443841200,-304.33,0.00016428,2]
[369041584,1751443841210,-3098.01869027,0.00016429,2]
[369041586,1751443841218,-304.72,0.00016437,2]
[369041588,1751443841228,-302.56,0.00016437,2]
[369041590,1751443841237,-1000.0,0.00016437,2]
[369041592,1751443841246,-305.46,0.00016437,2]
[369041594,1751443841256,-305.8,0.00016437,2]
[369041596,1751443841267,-302.92,0.00016437,2]
[369041598,1751443841276,-304.63,0.00016437,2]
[369041600,1751443841286,-300.37,0.00016437,2]
[369041602,1751443841295,-1562.80434725,0.00016438,2]
[369041604,1751443841304,-135509.54924916,0.00016438,2]
[369041660,1751443841828,-1082.64833014,0.00016438,2]
[369041662,1751443841839,-859.85994139,0.00016438,2]
[369041664,1751443841850,-1163.36825331,0.00016438,2]
[369041666,1751443841861,-1581.92154397,0.00016438,2]
[369041668,1751443841872,-1155.00000005,0.00016438,2]
[369041671,1751443841887,-23177.9119642,0.00016438,2]
[369041674,1751443841910,-1540.19587842,0.00016438,2]
[369041676,1751443841919,-490.0,0.00016438,2]
[369041678,1751443841929,-490.0,0.00016438,2]
[369041680,1751443841938,-490.0,0.00016438,2]
[369041682,1751443841948,-490.0,0.00016438,2]
[369041684,1751443841958,-490.0,0.00016438,2]
[369041686,1751443841967,-490.0,0.00016438,2]
[369041688,1751443841978,-490.0,0.00016438,2]
[369041690,1751443841987,-490.0,0.00016438,2]
[369041692,1751443841997,-490.0,0.00016438,2]
[369041694,1751443842007,-490.0,0.00016438,2]
[369041696,1751443842016,-490.0,0.00016438,2]
[369041698,1751443842028,-490.0,0.00016438,2]
[369041700,1751443842037,-490.0,0.00016438,2]
[369041702,1751443842046,-598.23202973,0.00016438,2]
[369041704,1751443842055,-494.68760908,0.00016438,2]
[369041706,1751443842065,-490.0,0.00016438,2]
[369041708,1751443842074,-490.0,0.00016438,2]
[369041710,1751443842083,-490.0,0.00016438,2]
[369041712,1751443842092,-490.0,0.00016438,2]
[369041714,1751443842102,-490.0,0.00016438,2]
[369041716,1751443842111,-490.0,0.00016438,2]
[369041718,1751443842120,-490.0,0.00016438,2]
[369041720,1751443842129,-490.0,0.00016438,2]
[369041722,1751443842138,-490.0,0.00016438,2]
[369041724,1751443842147,-450.12152046,0.00016438,2]
[369041726,1751443842157,-566.64284291,0.00016438,2]
[369041728,1751443842166,-554.83690679,0.00016438,2]
[369041730,1751443842176,-490.0,0.00016438,2]
[369041732,1751443842186,-303.86271541,0.00016438,2]
[369041734,1751443842196,-490.0,0.00016438,2]
[369041735,1751443842205,-490.0,0.00016438,2]
[369041738,1751443842214,-490.0,0.00016438,2]
[369041739,1751443842223,-490.0,0.00016438,2]
[369041741,1751443842233,-424.3797814,0.00016438,2]
[369041743,1751443842242,-163.470022,0.00016438,2]
[369041745,1751443842251,-166.754196,0.00016438,2]
[369041747,1751443842260,-164.795556,0.00016438,2]
[369041749,1751443842270,-155.090032,0.00016438,2]
[369041751,1751443842279,-492.0974312,0.00016438,2]
[369041754,1751443842288,-157.436288,0.00016438,2]
[369041756,1751443842297,-490.0,0.00016438,2]
[369041758,1751443842306,-490.0,0.00016438,2]
[369041760,1751443842316,-155.223134,0.00016438,2]
[369041762,1751443842326,-152.122006,0.00016438,2]
[369041764,1751443842334,-490.0,0.00016438,2]
[369041766,1751443842343,-490.0,0.00016438,2]
[369041767,1751443842352,-254.64832593,0.00016438,2]
[369041770,1751443842362,-490.0,0.00016438,2]
[369041771,1751443842371,-490.0,0.00016438,2]
[369041773,1751443842381,-490.0,0.00016438,2]
[369041776,1751443842391,-490.0,0.00016438,2]
[369041778,1751443842400,-490.0,0.00016438,2]
[369041780,1751443842409,-289.90898767,0.00016438,2]
[369041782,1751443842419,-490.0,0.00016438,2]
[369041783,1751443842428,-490.0,0.00016438,2]
[369041785,1751443842438,-189.77494565,0.00016438,2]
[369041787,1751443842447,-490.0,0.00016438,2]
[369041789,1751443842457,-490.0,0.00016438,2]
[369041791,1751443842466,-490.0,0.00016438,2]
[369041793,1751443842476,-286.09772976,0.00016438,2]
[369041795,1751443842485,-490.0,0.00016438,2]
[369041797,1751443842494,-490.0,0.00016438,2]
[369041799,1751443842503,-490.0,0.00016438,2]
[369041801,1751443842512,-490.0,0.00016438,2]
[369041803,1751443842522,-490.0,0.00016438,2]
[369041805,1751443842531,-490.0,0.00016438,2]
[369041807,1751443842540,-520.97912923,0.00016438,2]
[369041809,1751443842549,-490.0,0.00016438,2]
[369041811,1751443842558,-719.13,0.00016438,2]
[369041813,1751443842567,-490.0,0.00016438,2]
[369041815,1751443842576,-490.0,0.00016438,2]
[369041817,1751443842587,-490.0,0.00016438,2]
[369041819,1751443842596,-490.0,0.00016438,2]
[369041821,1751443842604,-492.56330341,0.00016438,2]
[369041823,1751443842613,-553.89,0.00016438,2]
[369041825,1751443842623,-490.0,0.00016438,2]
[369041827,1751443842632,-490.0,0.00016438,2]
[369041829,1751443842641,-490.0,0.00016438,2]
[369041831,1751443842651,-490.0,0.00016438,2]
[369041833,1751443842660,-490.0,0.00016438,2]
[369041835,1751443842670,-491.06507699,0.00016438,2]
[369041837,1751443842680,-490.0,0.00016438,2]
[369041839,1751443842689,-490.0,0.00016438,2]
[369041841,1751443842698,-490.0,0.00016438,2]
[369041843,1751443842708,-304.11400118,0.00016438,2]
[369041845,1751443842716,-490.0,0.00016438,2]
[369041847,1751443842726,-490.0,0.00016438,2]
[369041849,1751443842735,-490.0,0.00016438,2]
[369041851,1751443842744,-490.0,0.00016438,2]
[369041853,1751443842753,-569.68521688,0.00016438,2]
[369041855,1751443842762,-490.0,0.00016438,2]
[369041857,1751443842772,-490.0,0.00016438,2]
[369041859,1751443842781,-490.0,0.00016438,2]
[369041860,1751443842790,-490.0,0.00016438,2]
[369041862,1751443842800,-490.0,0.00016438,2]
[369041864,1751443842810,-500.0,0.00016438,2]
[369041866,1751443842819,-500.0,0.00016438,2]
[369041868,1751443842828,-490.0,0.00016438,2]
[369041870,1751443842838,-490.0,0.00016438,2]
[369041872,1751443842848,-490.0,0.00016438,2]
[369041874,1751443842857,-490.0,0.00016438,2]
[369041876,1751443842866,-490.0,0.00016438,2]
[369041878,1751443842875,-490.0,0.00016438,2]
[369041880,1751443842884,-490.0,0.00016438,2]
[369041882,1751443842894,-490.0,0.00016438,2]
[369041884,1751443842903,-490.0,0.00016438,2]
[369041886,1751443842912,-495.48,0.00016438,2]
[369041888,1751443842921,-490.0,0.00016438,2]
[369041890,1751443842931,-490.0,0.00016438,2]
[369041892,1751443842939,-218.09034144,0.00016438,2]
[369041894,1751443842949,-490.0,0.00016438,2]
[369041896,1751443842958,-490.0,0.00016438,2]
[369041898,1751443842967,-585.89,0.00016438,2]
[369041900,1751443842981,-493.76099112,0.00016438,2]
[369041921,1751443843199,-490.0,0.00016438,2]
[369041922,1751443843209,-490.0,0.00016438,2]
[369041923,1751443843219,-490.0,0.00016438,2]
[369041924,1751443843228,-490.0,0.00016438,2]
[369041925,1751443843237,-490.0,0.00016438,2]
[369041927,1751443843247,-676.7,0.00016438,2]
[369041928,1751443843256,-676.7,0.00016438,2]
[369041930,1751443843266,-490.0,0.00016438,2]
[369041932,1751443843275,-490.0,0.00016438,2]
[369041934,1751443843284,-490.0,0.00016438,2]
[369041935,1751443843294,-490.0,0.00016438,2]
[369041937,1751443843303,-490.0,0.00016438,2]
[369041938,1751443843312,-490.0,0.00016438,2]
[369041939,1751443843323,-490.0,0.00016438,2]
[369041940,1751443843332,-490.0,0.00016438,2]
[369041942,1751443843341,-490.0,0.00016438,2]
[369041944,1751443843351,-490.0,0.00016438,2]
[369041946,1751443843360,-490.0,0.00016438,2]
[369041948,1751443843369,-490.0,0.00016438,2]
[369041950,1751443843379,-490.0,0.00016438,2]
[369041952,1751443843389,-1041.85,0.00016438,2]
[369041954,1751443843399,-315.52697189,0.00016438,2]
[369041956,1751443843408,-490.0,0.00016438,2]
[369041958,1751443843417,-373.35579546,0.00016438,2]
[369041960,1751443843426,-490.0,0.00016438,2]
[369041962,1751443843436,-490.0,0.00016438,2]
[369041964,1751443843445,-490.0,0.00016438,2]
[369041966,1751443843454,-172.2555816,0.00016438,2]
[369041968,1751443843463,-490.0,0.00016438,2]
[369041970,1751443843473,-490.0,0.00016438,2]
[369041972,1751443843482,-490.0,0.00016438,2]
[369041974,1751443843492,-490.0,0.00016438,2]
[369041976,1751443843501,-490.0,0.00016438,2]
[369041978,1751443843510,-490.0,0.00016438,2]
[369041980,1751443843520,-500.0,0.00016438,2]
[369041982,1751443843529,-582.05107076,0.00016438,2]
[369041984,1751443843538,-490.0,0.00016438,2]
[369041986,1751443843547,-490.0,0.00016438,2]
[369041988,1751443843556,-831.02,0.00016438,2]
[369041990,1751443843566,-490.0,0.00016438,2]
[369041992,1751443843575,-490.0,0.00016438,2]
[369041994,1751443843584,-490.0,0.00016438,2]
[369041996,1751443843594,-490.0,0.00016438,2]
[369041998,1751443843603,-867.39,0.00016438,2]
[369042000,1751443843612,-490.0,0.00016438,2]
[369042002,1751443843621,-490.0,0.00016438,2]
[369042004,1751443843631,-490.0,0.00016438,2]
[369042006,1751443843640,-181.23740614,0.00016438,2]
[369042008,1751443843650,-491.57453093,0.00016438,2]
[369042010,1751443843659,-490.0,0.00016438,2]
[369042012,1751443843668,-490.0,0.00016438,2]
[369042014,1751443843677,-490.0,0.00016438,2]
[369042015,1751443843687,-490.0,0.00016438,2]
[369042017,1751443843696,-490.0,0.00016438,2]
[369042019,1751443843706,-490.0,0.00016438,2]
[369042021,1751443843716,-490.0,0.00016438,2]
[369042023,1751443843726,-490.0,0.00016438,2]
[369042025,1751443843736,-490.0,0.00016438,2]
[369042028,1751443843746,-490.0,0.00016438,2]
[369042029,1751443843756,-490.0,0.00016438,2]
[369042031,1751443843766,-490.0,0.00016438,2]
[369042033,1751443843775,-490.0,0.00016438,2]
[369042035,1751443843785,-490.0,0.00016438,2]
[369042037,1751443843794,-490.0,0.00016438,2]
[369042039,1751443843804,-490.0,0.00016438,2]
[369042041,1751443843814,-490.0,0.00016438,2]
[369042043,1751443843823,-490.0,0.00016438,2]
[369042045,1751443843833,-490.0,0.00016438,2]
[369042047,1751443843843,-490.0,0.00016438,2]
[369042049,1751443843852,-490.0,0.00016438,2]
[369042051,1751443843862,-181.01770946,0.00016438,2]
[369042054,1751443843872,-490.0,0.00016438,2]
[369042056,1751443843881,-490.0,0.00016438,2]
[369042057,1751443843891,-490.0,0.00016438,2]
[369042059,1751443843901,-490.0,0.00016438,2]
[369042061,1751443843910,-490.0,0.00016438,2]
[369042063,1751443843919,-490.0,0.00016438,2]
[369042065,1751443843929,-490.0,0.00016438,2]
[369042067,1751443843938,-490.0,0.00016438,2]
[369042069,1751443843948,-679.03,0.00016438,2]
[369042071,1751443843957,-490.0,0.00016438,2]
[369042073,1751443843966,-490.0,0.00016438,2]
[369042075,1751443843978,-490.0,0.00016438,2]
[369042077,1751443843988,-490.0,0.00016438,2]
[369042079,1751443843997,-490.0,0.00016438,2]
[369042081,1751443844007,-490.0,0.00016438,2]
[369042083,1751443844018,-490.0,0.00016438,2]
[369042085,1751443844027,-490.0,0.00016438,2]
[369042087,1751443844037,-490.0,0.00016438,2]
[369042089,1751443844046,-490.0,0.00016438,2]
[369042091,1751443844056,-490.0,0.00016438,2]
[369042093,1751443844066,-490.0,0.00016438,2]
[369042095,1751443844075,-492.11362489,0.00016438,2]
[369042097,1751443844084,-182.06474218,0.00016438,2]
[369042099,1751443844093,-490.0,0.00016438,2]
[369042101,1751443844103,-420.78155515,0.00016438,2]
[369042103,1751443844112,-490.0,0.00016438,2]
[369042105,1751443844121,-490.0,0.00016438,2]
[369042107,1751443844131,-490.0,0.00016438,2]
[369042109,1751443844140,-492.68392259,0.00016438,2]
[369042111,1751443844149,-490.0,0.00016438,2]
[369042113,1751443844158,-490.0,0.00016438,2]
[369042115,1751443844168,-490.0,0.00016438,2]
[369042117,1751443844177,-490.0,0.00016438,2]
[369042119,1751443844187,-490.0,0.00016438,2]
[369042120,1751443844196,-490.0,0.00016438,2]
[369042123,1751443844206,-490.0,0.00016438,2]
[369042125,1751443844216,-490.0,0.00016438,2]
[369042127,1751443844227,-500.0,0.00016438,2]
[369042129,1751443844236,-500.0,0.00016438,2]
[369042131,1751443844246,-371.61468855,0.00016438,2]
[369042133,1751443844255,-490.0,0.00016438,2]
[369042135,1751443844264,-490.0,0.00016438,2]
[369042136,1751443844274,-490.0,0.00016438,2]
[369042138,1751443844283,-490.0,0.00016438,2]
[369042140,1751443844293,-490.0,0.00016438,2]
[369042142,1751443844302,-490.0,0.00016438,2]
[369042144,1751443844311,-490.0,0.00016438,2]
[369042146,1751443844321,-490.0,0.00016438,2]
[369042148,1751443844330,-490.0,0.00016438,2]
[369042150,1751443844339,-490.0,0.00016438,2]
[369042152,1751443844348,-877.53,0.00016438,2]
[369042154,1751443844357,-490.0,0.00016438,2]
[369042156,1751443844367,-490.0,0.00016438,2]
[369042158,1751443844376,-491.53892638,0.00016438,2]
[369042160,1751443844385,-490.0,0.00016438,2]
[369042162,1751443844394,-490.0,0.00016438,2]
[369042164,1751443844404,-490.0,0.00016438,2]
[369042166,1751443844413,-490.0,0.00016438,2]
[369042168,1751443844423,-490.0,0.00016438,2]
[369042170,1751443844432,-490.0,0.00016438,2]
[369042172,1751443844441,-490.0,0.00016438,2]
[369042174,1751443844451,-490.0,0.00016438,2]
[369042197,1751443844672,-491.41285961,0.00016438,2]
[369042199,1751443844681,-490.0,0.00016438,2]
[369042201,1751443844691,-490.0,0.00016438,2]
[369042203,1751443844701,-490.0,0.00016438,2]
[369042205,1751443844710,-490.0,0.00016438,2]
[369042207,1751443844720,-490.0,0.00016438,2]
[369042209,1751443844729,-608.8942507,0.00016438,2]
[369042211,1751443844739,-490.0,0.00016438,2]
[369042213,1751443844748,-492.65247427,0.00016438,2]
[369042215,1751443844758,-490.0,0.00016438,2]
[369042217,1751443844767,-351.21427641,0.00016438,2]
[369042219,1751443844776,-490.0,0.00016438,2]
[369042221,1751443844786,-602.70253048,0.00016438,2]
[369042223,1751443844796,-490.0,0.00016438,2]
[369042225,1751443844806,-490.0,0.00016438,2]
[369042227,1751443844816,-490.0,0.00016438,2]
[369042229,1751443844825,-490.0,0.00016438,2]
[369042231,1751443844835,-490.0,0.00016438,2]
[369042233,1751443844844,-490.0,0.00016438,2]
[369042234,1751443844853,-490.0,0.00016438,2]
[369042236,1751443844863,-490.0,0.00016438,2]
[369042238,1751443844872,-490.0,0.00016438,2]
[369042240,1751443844881,-490.0,0.00016438,2]
[369042242,1751443844890,-490.0,0.00016438,2]
[369042244,1751443844899,-490.0,0.00016438,2]
[369042246,1751443844909,-493.8592707,0.00016438,2]
[369042248,1751443844919,-490.0,0.00016438,2]
[369042250,1751443844928,-490.0,0.00016438,2]
[369042252,1751443844937,-490.0,0.00016438,2]
[369042254,1751443844947,-490.0,0.00016438,2]
[369042256,1751443844956,-490.0,0.00016438,2]
[369042258,1751443844966,-490.0,0.00016438,2]
[369042260,1751443844979,-490.0,0.00016438,2]
[369042262,1751443844988,-490.0,0.00016438,2]
[369042264,1751443844998,-490.0,0.00016438,2]
[369042266,1751443845008,-490.0,0.00016438,2]
[369042268,1751443845018,-490.0,0.00016438,2]
[369042270,1751443845028,-490.0,0.00016438,2]
[369042272,1751443845037,-484.76629175,0.00016438,2]
[369042274,1751443845047,-490.0,0.00016438,2]
[369042276,1751443845058,-491.62615739,0.00016438,2]
[369042278,1751443845067,-490.0,0.00016438,2]
[369042280,1751443845077,-490.0,0.00016438,2]
[369042282,1751443845087,-490.0,0.00016438,2]
[369042284,1751443845096,-490.0,0.00016438,2]
[369042286,1751443845107,-490.0,0.00016438,2]
[369042287,1751443845119,-538.11627461,0.00016438,2]
[369042289,1751443845130,-1755.5,0.00016438,2]
[369042291,1751443845140,-490.0,0.00016438,2]
[369042294,1751443845150,-490.0,0.00016438,2]
[369042296,1751443845160,-490.0,0.00016438,2]
[369042298,1751443845169,-490.0,0.00016438,2]
[369042299,1751443845178,-490.0,0.00016438,2]
[369042301,1751443845188,-490.0,0.00016438,2]
[369042303,1751443845197,-490.0,0.00016438,2]
[369042305,1751443845207,-490.0,0.00016438,2]
[369042307,1751443845217,-490.0,0.00016438,2]
[369042310,1751443845226,-490.0,0.00016438,2]
[369042312,1751443845238,-490.0,0.00016438,2]
[369042314,1751443845248,-536.6,0.00016438,2]
[369042316,1751443845257,-490.0,0.00016438,2]
[369042318,1751443845267,-490.0,0.00016438,2]
[369042319,1751443845276,-490.0,0.00016438,2]
[369042322,1751443845285,-490.0,0.00016438,2]
[369042323,1751443845295,-2756.73,0.00016438,2]
[369042325,1751443845304,-490.0,0.00016438,2]
[369042327,1751443845313,-490.0,0.00016438,2]
[369042329,1751443845322,-490.0,0.00016438,2]
[369042331,1751443845332,-490.0,0.00016438,2]
[369042333,1751443845341,-490.0,0.00016438,2]
[369042335,1751443845350,-490.0,0.00016438,2]
[369042337,1751443845359,-490.0,0.00016438,2]
[369042339,1751443845369,-490.0,0.00016438,2]
[369042341,1751443845379,-491.37292315,0.00016438,2]
[369042343,1751443845388,-490.0,0.00016438,2]
[369042345,1751443845397,-490.0,0.00016438,2]
[369042347,1751443845406,-490.0,0.00016438,2]
[369042349,1751443845416,-490.0,0.00016438,2]
[369042351,1751443845425,-490.0,0.00016438,2]
[369042353,1751443845434,-491.84303642,0.00016438,2]
[369042355,1751443845443,-490.0,0.00016438,2]
[369042357,1751443845452,-1124.64,0.00016438,2]
[369042359,1751443845461,-490.0,0.00016438,2]
[369042361,1751443845470,-490.0,0.00016438,2]
[369042363,1751443845479,-490.0,0.00016438,2]
[369042365,1751443845488,-491.43855468,0.00016438,2]
[369042367,1751443845497,-490.0,0.00016438,2]
[369042369,1751443845507,-490.0,0.00016438,2]
[369042371,1751443845516,-490.0,0.00016438,2]
[369042373,1751443845525,-490.0,0.00016438,2]
[369042375,1751443845534,-490.0,0.00016438,2]
[369042377,1751443845543,-490.0,0.00016438,2]
[369042379,1751443845553,-490.0,0.00016438,2]
[369042381,1751443845562,-490.0,0.00016438,2]
[369042383,1751443845571,-490.0,0.00016438,2]
[369042385,1751443845581,-500.0,0.00016438,2]
[369042387,1751443845590,-490.0,0.00016438,2]
[369042389,1751443845599,-490.0,0.00016438,2]
[369042391,1751443845608,-490.0,0.00016438,2]
[369042393,1751443845617,-495.46,0.00016438,2]
[369042395,1751443845627,-490.0,0.00016438,2]
[369042397,1751443845636,-490.0,0.00016438,2]
[369042399,1751443845645,-500.0,0.00016438,2]
[369042401,1751443845654,-631.46,0.00016438,2]
[369042402,1751443845663,-490.0,0.00016438,2]
[369042404,1751443845672,-490.0,0.00016438,2]
[369042406,1751443845681,-490.0,0.00016438,2]
[369042407,1751443845690,-490.0,0.00016438,2]
[369042408,1751443845699,-490.0,0.00016438,2]
[369042409,1751443845708,-1141.52,0.00016438,2]
[369042410,1751443845718,-490.0,0.00016438,2]
[369042412,1751443845727,-500.0,0.00016438,2]
[369042414,1751443845737,-500.0,0.00016438,2]
[369042416,1751443845749,-517.49,0.00016438,2]
[369042418,1751443845758,-490.0,0.00016438,2]
[369042420,1751443845768,-490.0,0.00016438,2]
[369042422,1751443845781,-490.0,0.00016438,2]
[369042424,1751443845791,-490.0,0.00016438,2]
[369042425,1751443845800,-490.0,0.00016438,2]
[369042428,1751443845810,-490.0,0.00016438,2]
[369042430,1751443845820,-501.57656252,0.00016438,2]
[369042432,1751443845830,-490.0,0.00016438,2]
[369042434,1751443845839,-490.0,0.00016438,2]
[369042436,1751443845849,-1222.87,0.00016438,2]
[369042438,1751443845858,-495.34,0.00016438,2]
[369042439,1751443845867,-490.0,0.00016438,2]
[369042442,1751443845877,-500.0,0.00016438,2]
[369042444,1751443845886,-490.0,0.00016438,2]